[Event "IV Estrellas 2022"]
[Site "La Palma"]
[Date "2022.08.10"]
[Round "7.4"]
[White "Herrera Reyes, Jose Antonio"]
[Black "Martinez Reyes, Pedro Ramon"]
[Result "1-0"]
[ECO "C00"]
[WhiteElo "2345"]
[BlackElo "2408"]
[Annotator "TA"]
[PlyCount "81"]
[EventDate "2022.08.06"]
[EventType "swiss"]
[EventCountry "ESP"]
[SourceTitle "playchess.com"]
[Source "ChessBase"]
[SourceQuality "1"]
[TimeControl "5400+30"]

{[%evp 9,81,-43,-29,-58,-60,-50,-50,-43,-56,-83,-42,-32,9,0,32,22,45,24,107,-85,-116,-120,-44,-144,0,-112,-72,-122,-130,-188,-186,-251,-253,-249,-243,-230,-233,-197,-210,-193,-197,-314,-168,-157,-147,-167,-125,-104,0,-73,69,46,114,37,275,281,279,264,272,259,235,137,196,186,308,81,2011,1923,1441,1045,1029,1027,995,991]} 1. e4 {[%emt 0:00:10]} e6 {[%emt 0:03:14]} 2. Qe2 {[%emt 0:01:02]} Nc6 {[%emt 0:02:02]} 3. b3 {[%emt 0:03:34]} e5 {[%emt 0:06:29]} 4. Bb2 {[%emt 0:02:12]} Bc5 {[%emt 0:02:26] [#]} 5. Nc3 $146 {[%emt 0:03:46]} ({Predecessor:} 5. f4 Nd4 6. Qh5 Qe7 7. Bxd4 Bxd4 8. c3 Bxg1 9. Rxg1 exf4 10. d3 Nf6 11. Qg5 {0-1 (64) Apryshko,G (2371)-Rychagov,A (2534) Moscow 2017}) 5... Nf6 {[%emt 0:04:59]} 6. O-O-O {[%emt 0:05:17] C00: French: Unusual White 2nd moves.} O-O {[%emt 0:02:43]} 7. f4 {[%emt 0:04:39] Strongly threatening fxe5.} d6 {[%emt 0:17:51]} 8. h3 {[%emt 0:20:56] Black is slightly better.} Re8 {[%emt 0:05:05]} 9. f5 {[%emt 0:11:45]} d5 {[%emt 0:08:03]} 10. exd5 {[%emt 0:02:51]} Nxd5 {[%emt 0:07:16]} (10... Nd4 $5 {[%cal Rd4e2]} 11. Qc4 b6 $15) 11. g4 {[%emt 0:01:22]} Nf4 {[%emt 0:22:15]} 12. Qh2 {[%emt 0:02:33]} b6 {[%emt 0:03:35]} 13. Nge2 {[%emt 0:01:25]} Bb7 {[%emt 0:02:32]} (13... Nxe2+ $11 {keeps the balance.} 14. Nxe2 Bb7) 14. Ng3 $2 {[%emt 0:05:02]} (14. Nxf4 $16 {stays on course.} exf4 15. Bg2) 14... Nd4 $17 {[%emt 0:00:37] White must now prevent ...Nf3.} 15. Nge4 {[%emt 0:02:15]} Qh4 {[%emt 0:00:01]} (15... Be7 $17 16. d3 a5) 16. Bc4 {[%emt 0:11:19]} (16. Bg2 $15) 16... Rad8 {[%emt 0:02:37]} (16... Bf8 $17 {[%cal Ob6b5] ...b5! is the strong threat.} 17. Rhf1 b5 18. Nxb5 Nxb5 19. Bxb5 Bxe4) 17. Rhf1 {[%emt 0:01:49]} (17. Nxc5 $11 {was the only way to keep the balance.} bxc5 18. Rhg1) 17... Bf8 {[%emt 0:00:46]} (17... Nxh3 $2 18. Rh1 $18) (17... Qxh3 $2 18. Bxf7+ $1 {[%mdl 512]} Kh8 19. Qxh3 Nxh3 20. Rh1 $18) 18. a4 {[%emt 0:02:52]} (18. f6 $142) 18... a6 $1 {[%emt 0:00:09]} (18... Qxh3 $2 19. Bxf7+ $1 {[%mdl 512]} Kh8 20. Qxh3 Nxh3 21. Rh1 $18) (18... Nxh3 $2 19. Rh1 $18) 19. Qh1 {[%emt 0:03:05]} (19. Qf2 $17 {is a better defense.} Qxf2 20. Nxf2) 19... c6 $19 {[%emt 0:01:07]} (19... Qxh3 20. Nf6+ $1 gxf6 21. Qxb7 $16) 20. Rg1 {[%emt 0:04:49]} (20. Rfe1 $142) 20... b5 {[%emt 0:00:14]} (20... Qxh3 $2 21. Bxf7+ $1 {[%mdl 512]} (21. Ng5 Qxh1 22. Bxf7+ Kh8 $16) 21... Kh8 22. Qxh3 Nxh3 23. Rh1 $18) (20... Nxh3 $2 21. Rg3 Qxg3 22. Nxg3 $18) 21. Bf1 {[%emt 0:00:08]} b4 {[%emt 0:00:21]} 22. Na2 {[%emt 0:01:55]} Nde2+ {[%emt 0:00:36]} 23. Kb1 {[%emt 0:00:01]} Nxg1 {[%emt 0:00:32]} 24. Qxg1 {[%emt 0:00:01]} c5 {[%emt 0:00:42]} 25. Nxc5 {[%emt 0:00:21]} (25. Qe3 {is the only way for White.}) 25... Bf3 {[%emt 0:00:16]} (25... Nxh3 $142 26. Bxh3 Bf3) 26. Rc1 {[%emt 0:00:22]} a5 {[%emt 0:03:04]} ({Inferior is} 26... Rxd2 27. Qe3 Qf2 28. Qxf2 Rxf2 29. Nxa6 $17) 27. Qe3 {[%emt 0:00:58]} Bxc5 {[%emt 0:02:05]} 28. Qxc5 {[%emt 0:00:13]} Rxd2 {[%emt 0:00:09]} (28... Be2 $17 {And now ...Rd5 would win.} 29. Qxa5 Bxf1 30. Rxf1 Qxh3) 29. Bb5 {[%emt 0:00:08]} (29. Qxa5 $11 Ne2 30. Qb5) 29... Red8 {[%emt 0:01:57]} (29... Rd5 $1 $17 {[%cal Rd5c5]} 30. Qa7 Rxb5 $1 31. axb5 Ne2) 30. Qxe5 $14 {[%emt 0:00:07][%csl Gb2][%cal Re5g7]} Qh6 {[%emt 0:00:01]} 31. Bc4 {[%emt 0:01:59] A strong pair of Bishops.} ({Better is} 31. Re1 $16 {[%cal Oe5e8] Qe8+! would kill now.} Rd1+ 32. Rxd1 Rxd1+ 33. Nc1) 31... Bd5 $2 {[%emt 0:00:17] [#]} ({Much less strong is} 31... Nxh3 32. Re1 Rf8 33. Qxa5 $16) (31... Ne2 $1 $14 32. Re1 Rd1+ 33. Rxd1 Rxd1+ 34. Bc1 Rxc1+ 35. Kb2 Qf6 36. Qxf6 gxf6 37. Nxc1 Nc3) 32. Re1 $1 $18 {[%emt 0:00:37][%cal Oe5e8]} f6 {[%emt 0:00:11]} 33. Qc7 {[%emt 0:00:24][%csl LRa5,LRd8]} Bxc4 34. Qxc4+ $40 {[%emt 0:00:01][%mdl 128] White is out for blood.} R2d5 {[%emt 0:01:53]} 35. Bc1 {[%emt 0:00:53]} ({White should play} 35. Re4 $18) 35... Qh4 {[%emt 0:00:02]} (35... Qxh3 $16 {was worth a try.} 36. Bxf4 Qxg4) 36. Re4 {[%emt 0:04:14]} Nd3 {[%emt 0:00:25]} (36... Nxh3 $2 37. Rd4 Nf4 38. Bxf4 $18) (36... g5 {was called for.}) 37. Rd4 $2 {[%emt 0:01:08]} (37. cxd3 $18 {has better winning chances.} Qxh3 38. Be3) 37... Nf4 $2 {[%emt 0:00:01][%mdl 8192]} 38. Bxf4 {[%emt 0:00:35][%cal Bc1f4,Bf4c7,Bc7a5][%mdl 32] White is clearly winning.} Qe1+ {[%emt 0:00:04]} 39. Nc1 {[%emt 0:00:02]} Qh1 {[%emt 0:00:01]} 40. Bc7 {[%emt 0:00:40][%csl LRa5,LRd8]} R8d7 {[%emt 0:00:19]} 41. Bxa5 {[%emt 0:00:12] Weighted Error Value: White=0.50/Black=0.47} 1-0

[Event "IV Estrellas 2022"]
[Site "La Palma"]
[Date "2022.08.10"]
[Round "7.5"]
[White "Estremera Panos, Sergio"]
[Black "Geske, Julian"]
[Result "0-1"]
[ECO "D12"]
[WhiteElo "2262"]
[BlackElo "2386"]
[Annotator "TA"]
[PlyCount "74"]
[EventDate "2022.08.06"]
[EventType "swiss"]
[EventCountry "ESP"]
[SourceTitle "playchess.com"]
[Source "ChessBase"]
[SourceQuality "1"]
[TimeControl "5400+30"]

{[%evp 17,74,5,18,0,16,14,16,14,16,8,8,0,2,0,0,0,0,-51,-47,-50,-22,-70,-57,-57,-56,-108,-85,-114,-76,-130,-127,-143,-144,-133,-115,-414,-410,-441,-437,-439,-425,-471,-393,-656,-630,-583,-560,-537,-472,-470,-469,-588,-439,-6327,-6315,-5975,-5929,-5402,-5402]} 1. d4 {[%emt 0:00:10]} d5 {[%emt 0:00:11]} 2. c4 {[%emt 0:00:15]} c6 {[%emt 0:00:02]} 3. Nf3 {[%emt 0:00:24]} Nf6 {[%emt 0:00:04]} 4. e3 {[%emt 0:00:40]} Bf5 {[%emt 0:00:04]} 5. Nc3 {[%emt 0:00:16]} e6 {[%emt 0:00:05]} 6. Bd3 {[%emt 0:00:43]} Bg6 {[%emt 0:00:29]} 7. O-O {[%emt 0:00:34]} Bd6 {[%emt 0:00:09]} 8. b3 {[%emt 0:03:44][%cal Bb2b3,Bb3c4][%mdl 32]} Nbd7 {[%emt 0:01:46]} 9. Bb2 {[%emt 0:00:48]} O-O {[%emt 0:00:41]} 10. Qc2 {[%emt 0:04:47] D12: Slav Defence: 3 Nf3 Nf6 4 e3 Bf5.} dxc4 {[%emt 0:02:19]} 11. Bxg6 {[%emt 0:17:33]} hxg6 {[%emt 0:00:20]} 12. bxc4 {[%emt 0:01:31] The position is equal.} e5 {[%emt 0:00:41] [#]} 13. Ne4 $146 {[%emt 0:23:28]} ({Predecessor:} 13. h3 exd4 14. exd4 Re8 15. Nd2 Qe7 16. Rad1 Rac8 17. Nf3 Qe6 18. Qd3 Qf5 19. Rfe1 Qxd3 20. Rxd3 Rxe1+ 21. Nxe1 {½-½ (46) Erdos,V (2480)-Varga,Z (2515) Kazincbarcika 2005}) 13... Nxe4 {[%emt 0:05:11]} 14. Qxe4 {[%emt 0:00:02][%cal Rd4e5]} f5 {[%emt 0:01:44]} 15. Qc2 {[%emt 0:00:43][%cal Rd4e5]} e4 {[%emt 0:00:54]} 16. Nd2 {[%emt 0:00:10]} Nf6 {[%emt 0:02:54][%cal Od6h2]} 17. f3 {[%emt 0:06:49]} ({White has to play} 17. g3 $1 $11) 17... exf3 $15 {[%emt 0:01:20]} 18. Rxf3 {[%emt 0:00:02]} Qe7 $36 {[%emt 0:01:25][%mdl 2048] Prevents e4. Black has the initiative.} 19. Rb1 {[%emt 0:11:34]} (19. c5 $11 {should be considered.} Bc7 20. Re1) 19... Rae8 {[%emt 0:05:24]} 20. Qb3 {[%emt 0:09:27] And now c5+ would win.} Rf7 {[%emt 0:02:35]} 21. Bc3 {[%emt 0:06:42]} (21. c5 $15 Bc7 22. g3) 21... Bb8 {[%emt 0:06:19]} 22. Nf1 {[%emt 0:04:05]} Ne4 {[%emt 0:02:39]} 23. Bb4 {[%emt 0:00:38] [#]} (23. c5 $142) 23... Qd7 $1 $17 {[%emt 0:01:54] 0x0.0019ed4d6077dp-1022s more active pieces.} 24. Rd1 {[%emt 0:01:04] [#]} g5 $1 {[%emt 0:01:47] aiming for ...g4.} 25. h3 {[%emt 0:00:58]} Kh8 {[%emt 0:02:56]} 26. Be1 $2 {[%emt 0:02:42][%mdl 8192] Now White is beyond hope.} (26. c5 $17) 26... g4 $19 {[%emt 0:05:05]} 27. hxg4 {[%emt 0:00:01]} fxg4 {[%emt 0:00:05]} 28. Rxf7 {[%emt 0:00:04]} Qxf7 {[%emt 0:00:02]} 29. Qd3 {[%emt 0:03:13]} Rf8 {[%emt 0:01:05][%cal Be8f8,Bf8f6,Bf6h6,Bh6h3][%mdl 32]} 30. Qe2 $2 {[%emt 0:00:40]} (30. Rb1 b6 31. g3) 30... Qh5 {[%emt 0:04:21][%cal Of8f1] Black is clearly winning.} 31. g3 {[%emt 0:00:01]} Ng5 {[%emt 0:01:14] White must now prevent ...Nf3+.} 32. Nh2 {[%emt 0:00:25]} Nf3+ {[%emt 0:01:10]} 33. Nxf3 {[%emt 0:00:09]} gxf3 {[%emt 0:00:05]} ({Stronger than} 33... Rxf3 34. Qh2 Qxh2+ 35. Kxh2 $17) 34. Qf2 {[%emt 0:01:09]} Rf6 {[%emt 0:00:35] ( -> ...Rh6)} 35. Rd2 {[%emt 0:00:14]} (35. Qh2 $142 f2+ 36. Bxf2 Qxh2+ 37. Kxh2 Rxf2+ 38. Kh3) 35... Rh6 {[%emt 0:00:31][%csl Gh6][%cal Rh5h1]} 36. Qh2 {[%emt 0:00:22] Inhibits Qh1+.} Qg4 {[%emt 0:00:46]} 37. Qf2 {[%emt 0:00:24]} Rh3 {[%emt 0:00:00] Weighted Error Value: White=0.67/Black=0.14 (very precise)} 0-1

[Event "IV Estrellas 2022"]
[Site "La Palma"]
[Date "2022.08.10"]
[Round "7.6"]
[White "Pierrot, Facundo"]
[Black "Garcia Blanco, Omar"]
[Result "1/2-1/2"]
[ECO "A86"]
[WhiteElo "2371"]
[BlackElo "2352"]
[Annotator "TA"]
[PlyCount "110"]
[EventDate "2022.08.06"]
[EventType "swiss"]
[EventCountry "ESP"]
[SourceTitle "playchess.com"]
[Source "ChessBase"]
[SourceQuality "1"]
[TimeControl "5400+30"]

{[%evp 13,110,16,12,12,16,20,7,19,43,16,37,27,22,22,17,0,0,0,71,25,33,25,27,23,20,19,25,34,40,38,40,33,36,38,40,38,40,35,40,41,40,35,49,49,54,29,45,37,36,20,46,37,196,193,208,209,209,202,187,193,296,293,293,293,291,293,278,277,286,270,316,0,0,0,0,0,0,0,0,0,0,0,0,0,0,0,0,0,0,0,0,0,0,0,0,-15,-10,-10,8]} 1. d4 {[%emt 0:00:03][%cal Bd2d4,Bd4d5,Bd5e6][%mdl 32]} f5 {[%emt 0:03:25]} 2. g3 {[%emt 0:00:25]} Nf6 {[%emt 0:00:18]} 3. Bg2 {[%emt 0:00:17]} g6 {[%emt 0:00:42]} 4. Nh3 {[%emt 0:00:48]} Bg7 {[%emt 0:02:09]} 5. c4 {[%emt 0:00:19]} d6 {[%emt 0:00:28]} 6. d5 {[%emt 0:00:15]} c6 {[%emt 0:01:08]} 7. Nf4 {[%emt 0:01:19]} e5 {[%emt 0:05:28]} 8. dxe6 {[%emt 0:00:32] A86: Dutch Defence: Leningrad System: Unusual lines and 5 Nh3.} Na6 {[%emt 0:00:13]} 9. Nc3 {[%emt 0:05:43]} Nc5 {[%emt 0:00:55]} 10. O-O {[%emt 0:01:09]} Qe7 {[%emt 0:03:47] [#]} 11. Rb1 $146 {[%emt 0:02:58]} ({Predecessor:} 11. Qc2 O-O 12. b3 Bxe6 13. Nxe6 Qxe6 14. e3 Ng4 15. Bb2 g5 16. Ne2 Bxb2 17. Qxb2 {½-½ (78) Mirzoev,A (2554)-Pap,M (2514) Rethymno 2014}) 11... Bxe6 {[%emt 0:02:53]} 12. Nxe6 {[%emt 0:09:28]} Qxe6 {[%emt 0:00:34]} 13. Bf4 {[%emt 0:03:42]} Rd8 {[%emt 0:00:23]} 14. b3 {[%emt 0:00:46]} Nce4 {[%emt 0:08:48]} 15. Nxe4 {[%emt 0:00:15]} fxe4 {[%emt 0:00:22]} (15... Nxe4 $11 {remains equal.} 16. Qd3 O-O) 16. Be3 {[%emt 0:05:42]} (16. Qd4 $16) 16... O-O {[%emt 0:26:19]} 17. Qc2 {[%emt 0:04:29]} a6 {[%emt 0:00:40]} 18. Rfd1 {[%emt 0:03:46]} Rde8 {[%emt 0:00:11]} 19. Rd2 {[%emt 0:02:26]} d5 {[%emt 0:02:22]} 20. Rbd1 {[%emt 0:00:25]} Qf5 {[%emt 0:01:26]} 21. h3 {[%emt 0:09:19] Inhibits Ng4.} h5 {[%emt 0:00:16]} 22. cxd5 {[%emt 0:02:56]} Nxd5 {[%emt 0:00:38]} 23. Bc5 {[%emt 0:00:28] A strong pair of Bishops.} Rf7 {[%emt 0:01:24]} 24. e3 {[%emt 0:02:17]} Kh7 {[%emt 0:04:42]} 25. Bd4 {[%emt 0:02:00] Against Nc3} Bh6 {[%emt 0:01:05]} 26. a3 {[%emt 0:01:18]} Bf8 {[%emt 0:01:55]} 27. b4 {[%emt 0:00:55]} Bh6 {[%emt 0:00:12]} 28. Qb3 {[%emt 0:04:03]} Bf8 {[%emt 0:02:23]} 29. Bc5 {[%emt 0:00:50]} Bg7 {[%emt 0:00:09]} 30. Qc2 {[%emt 0:01:43]} Nc3 {[%emt 0:02:40]} 31. Rc1 {[%emt 0:01:35]} Nd5 {[%emt 0:01:22]} 32. Rb1 {[%emt 0:00:48]} Bc3 $2 {[%emt 0:01:37] [#]} ({Black should try} 32... Kh6 $14) 33. Rxd5 $1 $18 {[%emt 0:03:04][%mdl 512]} cxd5 {[%emt 0:00:06]} 34. Qxc3 {[%emt 0:00:04]} Qxf2+ {[%emt 0:00:07]} 35. Kh2 $1 {[%emt 0:00:05]} ({Not} 35. Kh1 Qxg3 36. Rf1 Rxf1+ 37. Bxf1 Re6 $11) 35... h4 {[%emt 0:03:19]} 36. Bd6 {[%emt 0:00:51]} d4 {[%emt 0:10:17]} (36... Qa2 $142 37. Rg1 Re6) 37. exd4 {[%emt 0:10:25]} e3 {[%emt 0:01:14]} 38. Rf1 $1 {[%emt 0:04:21]} Qa2 {[%emt 0:00:06]} 39. Rxf7+ {[%emt 0:02:41]} Qxf7 {[%emt 0:00:06]} 40. gxh4 {[%emt 0:00:03] Strongly threatening Be5.} e2 {[%emt 0:01:03] [#]} 41. Bg3 {[%emt 0:00:21]} Qe7 {[%emt 0:08:41] [#]} 42. Qe1 $2 {[%emt 0:02:11]} ({White must play} 42. Be1 $1 $18) 42... Qe3 $1 $11 {[%emt 0:01:06][%csl LRa3,LRd4] The position is equal.} 43. d5 {[%emt 0:00:27]} Rc8 {[%emt 0:00:35] ...Rc3 is the strong threat.} 44. Qf2 {[%emt 0:03:57]} Qxf2 {[%emt 0:02:26]} 45. Bxf2 {[%emt 0:00:05]} Rc1 {[%emt 0:01:22]} 46. d6 {[%emt 0:00:43] Hoping for d7.} e1=Q {[%emt 0:00:58]} 47. Bxe1 {[%emt 0:00:04]} Rxe1 {[%emt 0:00:05]} 48. Bxb7 {[%emt 0:00:04][%mdl 4096] Endgame aiming for d7. KR-KB} Rd1 {[%emt 0:00:37]} 49. Bxa6 {[%emt 0:00:06]} Rxd6 {[%emt 0:00:05]} 50. b5 {[%emt 0:00:58]} Rd2+ {[%emt 0:00:31]} 51. Kg3 {[%emt 0:00:57] Threatens to win with b6.} Rd3+ {[%emt 0:00:05]} 52. Kf4 {[%emt 0:00:18] Black must now prevent b6.} Rxa3 {[%emt 0:00:06]} 53. h5 {[%emt 0:00:59]} gxh5 {[%emt 0:00:25]} 54. Kg5 {[%emt 0:00:04]} Rb3 {[%emt 0:00:10]} 55. h4 {[%emt 0:00:36]} Rxb5+ {[%emt 0:00:08] Black defended with fortune.  Weighted Error Value: White=0.12 (very precise) /Black=0.13 (very precise)} 1/2-1/2

[Event "IV Estrellas 2022"]
[Site "La Palma"]
[Date "2022.08.10"]
[Round "7.7"]
[White "Capote Robayna, Nathaniel"]
[Black "Pulvett Marin, Daniel Eduardo"]
[Result "1/2-1/2"]
[ECO "B47"]
[WhiteElo "2150"]
[BlackElo "2523"]
[Annotator "TA"]
[PlyCount "76"]
[EventDate "2022.08.06"]
[EventType "swiss"]
[EventCountry "ESP"]
[SourceTitle "playchess.com"]
[Source "ChessBase"]
[SourceQuality "1"]
[TimeControl "5400+30"]

{[%evp 19,76,20,20,24,35,14,97,76,89,89,83,66,135,135,232,220,230,184,332,310,338,15,19,16,217,4,9,8,14,14,123,72,97,8,17,0,189,154,170,129,125,118,125,125,122,112,236,0,76,0,205,136,445,443,441,439,424,373,313]} 1. e4 {[%emt 1:31:00]} c5 {[%emt 1:31:00]} 2. Nf3 {[%emt 0:00:30]} e6 {[%emt 0:00:30]} 3. d4 {[%emt 0:00:30]} cxd4 {[%emt 0:00:30]} 4. Nxd4 {[%emt 0:00:30]} Nc6 {[%emt 0:00:30]} 5. Nc3 {[%emt 0:00:30]} Qc7 {[%emt 0:00:30]} 6. f4 {[%emt 0:00:30]} a6 {[%emt 0:00:30]} 7. Nxc6 {[%emt 0:00:30]} Qxc6 {[%emt 0:00:30]} 8. Bd3 {[%emt 0:00:30]} b5 {[%emt 0:00:30]} 9. Qe2 {[%emt 0:00:30]} Bb7 {[%emt 0:00:30]} 10. Bd2 {[%emt 0:00:30]} Bc5 {[%emt 0:00:30]} 11. O-O-O {[%emt 0:00:30] B47: Sicilian: Taimanov: 5 Nc3 Qc7 6 f4, 6 g3 and 6 Be2.} Ne7 {[%emt 0:00:30]} 12. Qh5 {[%emt 0:00:30]} b4 {[%emt 0:00:30] [#]} (12... g6 $11 13. Qh6 b4) 13. Na4 $1 $16 {[%emt 0:00:30] White is better.} d5 {[%emt 0:00:30]} (13... Bd6 14. Qa5) 14. Nxc5 {[%emt 0:00:30]} Qxc5 {[%emt 0:00:30]} 15. Kb1 {[%emt 0:00:30][%cal Oc2c4] [#]} Rc8 $146 {[%emt 0:00:30]} (15... a5 $14) ({Predecessor:} 15... O-O 16. e5 g6 17. Qg5 a5 18. h4 Ba6 19. h5 Bxd3 20. cxd3 d4 21. Rc1 Qa7 {1-0 (33) Van der Weide,K (2434)-Van der Elburg,F Dieren 1999}) 16. Rhe1 {[%emt 0:00:30]} a5 {[%emt 0:00:30]} (16... g6 $16 17. Qe5 O-O) 17. Be3 $18 {[%emt 0:00:30]} Qc7 {[%emt 0:00:30]} 18. exd5 {[%emt 0:00:30]} Bxd5 {[%emt 0:00:30]} (18... Nxd5 $142 19. f5 O-O) 19. Bd4 {[%emt 0:00:30] Active counter play! A strong pair of Bishops.} Bc4 {[%emt 0:00:30]} 20. Bxg7 $2 {[%emt 0:00:30]} (20. Bxh7 Bd5 21. Bxg7 Qxc2+ 22. Bxc2 Rxh5 $14) (20. Be4 $18) 20... Bxd3 $11 {[%emt 0:00:30]} 21. cxd3 {[%emt 0:00:30]} (21. Bxh8 Bxc2+ 22. Ka1 Bxd1 23. Qxd1 Qxf4 $17) 21... Qc2+ {[%emt 0:00:30]} (21... Rg8 $2 22. Rc1 Qd8 23. Qxh7 $18) 22. Ka1 {[%emt 0:00:30]} Rg8 {[%emt 0:00:30]} 23. Qxh7 {[%emt 0:00:30]} Qxg2 {[%emt 0:00:30]} 24. Rg1 {[%emt 0:00:30]} Qc6 {[%emt 0:00:30]} (24... Qd5 $1 $11) 25. f5 $36 {[%emt 0:00:30][%mdl 2048] White is in control.} exf5 {[%emt 0:00:30]} 26. Rge1 {[%emt 0:00:30]} (26. d4 $16 Qd5 27. Rge1) 26... Kd7 $11 {[%emt 0:00:30]} 27. Qh4 {[%emt 0:00:30][%csl Ge1][%cal Rh4e7]} Ng6 {[%emt 0:00:30] [#]} (27... Nd5 $11 {and Black has nothing to worry.} 28. Be5 (28. Qd4 Qc5 $11) 28... Rge8) 28. Qf2 $1 {[%emt 0:00:30]} Qd5 {[%emt 0:00:30]} 29. Bf6 {[%emt 0:00:30]} Rc6 {[%emt 0:00:30]} 30. Bg5 {[%emt 0:00:30] Strongly threatening h4.} Rgc8 {[%emt 0:00:30]} 31. h4 {[%emt 0:00:30][%cal Bh2h4,Bh4h5][%mdl 32] Hoping for Qg1.} Rc2 {[%emt 0:00:30]} 32. Qa7+ {[%emt 0:00:30]} R2c7 {[%emt 0:00:30] [#]} (32... R8c7 $16 33. Qe3 Kc6) 33. Qf2 $2 {[%emt 0:00:30]} (33. Qg1 $1 $18 {and White stays clearly on top.}) 33... Rc2 $1 $16 {[%emt 0:00:30] [#]} 34. Qa7+ {[%emt 0:00:30] Really sharp!} (34. Qg1 $1 $16) 34... R2c7 $18 {[%emt 0:00:30]} 35. Qe3 {[%emt 0:00:30] aiming for h5.} Kc6 $2 {[%emt 0:00:30][%mdl 8192]} (35... Rc2 $16 {is more resistant.}) 36. h5 {[%emt 0:00:30]} f4 {[%emt 0:00:30]} 37. Qg1 {[%emt 0:00:30]} ({Not} 37. Bxf4 Nxf4 38. Qxf4 Qxh5 $16) 37... Ne5 {[%emt 0:00:30] And now ...Nf3 would win.} 38. Bxf4 {[%emt 0:00:30]} Nf3 {[%emt 0:00:30][%mdl 32768] Weighted Error Value: White=0.44/Black=0.44. An unexpected result.} 1/2-1/2

[Event "IV Estrellas 2022"]
[Site "La Palma"]
[Date "2022.08.10"]
[Round "7.8"]
[White "Kurajica, Bojan"]
[Black "Diaz Perez, Michel Alejandro"]
[Result "1-0"]
[ECO "E06"]
[WhiteElo "2525"]
[BlackElo "2433"]
[Annotator "TA"]
[PlyCount "53"]
[EventDate "2022.08.06"]
[EventType "swiss"]
[EventCountry "ESP"]
[SourceTitle "playchess.com"]
[Source "ChessBase"]
[SourceQuality "1"]
[TimeControl "5400+30"]

{[%evp 15,53,0,0,0,22,4,36,33,43,26,36,20,28,6,6,-12,0,0,4,0,11,4,6,14,68,52,53,58,82,21,63,72,70,56,852,798,795,795,769,730]} 1. Nf3 {[%emt 0:00:03]} d5 {[%emt 0:00:09]} 2. d4 {[%emt 0:00:05]} e6 {[%emt 0:00:07]} 3. c4 {[%emt 0:00:13]} Nf6 {[%emt 0:00:09]} 4. g3 {[%emt 0:00:08]} Be7 {[%emt 0:00:19]} 5. Bg2 {[%emt 0:00:19]} O-O {[%emt 0:00:07]} 6. Nbd2 {[%emt 0:00:41]} c5 {[%emt 0:04:24]} 7. dxc5 {[%emt 0:01:46]} Bxc5 {[%emt 0:01:42]} 8. O-O {[%emt 0:00:19]} Nc6 {[%emt 0:07:49]} 9. e3 {[%emt 0:00:40] E06: Closed Catalan: Early deviations.} dxc4 {[%emt 0:08:00]} 10. Nxc4 {[%emt 0:00:29] [#]} Qc7 $146 {[%emt 0:00:36]} (10... Qe7 $5 {[%cal Re6e5]}) ({Predecessor:} 10... Qxd1 11. Rxd1 Rd8 12. Rxd8+ Nxd8 13. Nfe5 Kf8 14. b3 Nd7 15. Bb2 f6 16. Nd3 Be7 17. Rd1 Rb8 {1-0 (60) Mitchell,R (1690)-Rumsey,V (1908) Hastings 2013}) 11. b3 {[%emt 0:05:38] White is slightly better.} b5 {[%emt 0:08:38]} 12. Ncd2 {[%emt 0:02:48]} Bb7 {[%emt 0:00:17]} 13. Bb2 {[%emt 0:00:07]} Be7 {[%emt 0:02:42]} 14. Qc2 {[%emt 0:10:25]} Rac8 {[%emt 0:02:07]} 15. Rac1 {[%emt 0:02:00]} Qb6 {[%emt 0:01:41]} 16. Qb1 {[%emt 0:00:17]} Rfd8 {[%emt 0:07:08]} 17. a3 {[%emt 0:01:38]} Qa5 {[%emt 0:12:04]} 18. b4 {[%emt 0:09:18]} Qb6 {[%emt 0:02:10]} 19. Nb3 {[%emt 0:13:20]} Ba8 {[%emt 0:02:59]} (19... h6 $11) 20. Ng5 $14 {[%emt 0:05:43] And now Bxf6 would win.} h6 {[%emt 0:02:52]} 21. Bxf6 {[%emt 0:04:38]} Bxf6 {[%emt 0:02:16]} 22. Qh7+ {[%emt 0:00:51]} Kf8 {[%emt 0:00:05]} 23. Ne4 {[%emt 0:00:09] White is more active. Pair of Knights!} Be5 {[%emt 0:11:45]} 24. Nec5 {[%emt 0:01:28] Hoping for f4.} Ne7 $2 {[%emt 0:08:20][%mdl 8192] [#]} (24... Ke7 $14) 25. Nd7+ $1 $18 {[%emt 0:03:02][%mdl 512] White is clearly winning.} Rxd7 {[%emt 0:00:37]} 26. Qh8+ {[%emt 0:00:20][%mdl 64] Skewer} Ng8 {[%emt 0:00:16]} 27. Rxc8+ {[%emt 0:00:08] Weighted Error Value: White=0.07 (flawless) /Black=0.15 (very precise)} 1-0